[Event "*** Titled Tuesday Blitz"]
[Site "Chess.com"]
[Date "2020.04.14"]
[Round "8"]
[White "MateSchmate"]
[Black "donotreadit"]
[Result "0-1"]
[WhiteElo "2566"]
[BlackElo "2710"]
[TimeControl "180+1"]
[EndTime "11:28:22 PDT"]
[Termination "donotreadit won by checkmate"]

1. e4 {[%clk 0:03:00.9]} 1... d6 {[%clk 0:03:00.3]} 2. f4 {[%clk 0:03:00.1]}
2... d5 {[%clk 0:02:58.5]} 3. e5 {[%clk 0:02:58.7]} 3... c5 {[%clk 0:02:58.2]}
4. Nf3 {[%clk 0:02:58.2]} 4... Nc6 {[%clk 0:02:58.5]} 5. c3 {[%clk 0:02:57.9]}
5... Bg4 {[%clk 0:02:55.8]} 6. h3 {[%clk 0:02:55.7]} 6... Bxf3 {[%clk
0:02:55.3]} 7. Qxf3 {[%clk 0:02:56.6]} 7... e6 {[%clk 0:02:55.7]} 8. Na3 {[%clk
0:02:52.9]} 8... h5 {[%clk 0:02:53.3]} 9. g3 {[%clk 0:02:51]} 9... Nge7 {[%clk
0:02:50.5]} 10. Nc2 {[%clk 0:02:46.1]} 10... Nf5 {[%clk 0:02:50.5]} 11. Ne3
{[%clk 0:02:46.6]} 11... g6 {[%clk 0:02:41.5]} 12. Bg2 {[%clk 0:02:42.2]} 12...
Be7 {[%clk 0:02:39.1]} 13. Nxf5 {[%clk 0:02:39]} 13... gxf5 {[%clk 0:02:38.3]}
14. d3 {[%clk 0:02:36.1]} 14... Qb6 {[%clk 0:02:34.7]} 15. Qe2 {[%clk
0:02:23.2]} 15... O-O-O {[%clk 0:02:30.9]} 16. b3 {[%clk 0:02:07.3]} 16... Rdg8
{[%clk 0:02:26.4]} 17. Qf2 {[%clk 0:02:03.1]} 17... Qd8 {[%clk 0:02:23.1]} 18.
h4 {[%clk 0:02:01.6]} 18... Rg7 {[%clk 0:02:20.2]} 19. Qf3 {[%clk 0:01:36.4]}
19... Rhg8 {[%clk 0:02:16.7]} 20. Rh3 {[%clk 0:01:36.6]} 20... Rxg3 {[%clk
0:02:13.5]} 21. Rxg3 {[%clk 0:01:27]} 21... Bxh4 {[%clk 0:01:49.2]} 22. Qxh5
{[%clk 0:01:27.1]} 22... Rxg3 {[%clk 0:01:48.5]} 23. Kf1 {[%clk 0:01:27.2]}
23... Qg8 {[%clk 0:01:48.4]} 24. Qxh4 {[%clk 0:01:19.8]} 24... Rxg2 {[%clk
0:01:47.7]} 25. Be3 {[%clk 0:01:20.2]} 25... b6 {[%clk 0:01:35.8]} 26. a4 {[%clk
0:01:17.8]} 26... Rb2 {[%clk 0:01:29.4]} 27. Bf2 {[%clk 0:01:15.8]} 27... Qg4
{[%clk 0:01:23.5]} 28. Qxg4 {[%clk 0:00:59.9]} 28... fxg4 {[%clk 0:01:24.4]} 29.
a5 {[%clk 0:01:00.5]} 29... Nxa5 {[%clk 0:01:16.8]} 30. Bxc5 {[%clk 0:00:59.2]}
30... Nxb3 {[%clk 0:01:15.7]} 31. Ba3 {[%clk 0:00:54.7]} 31... Rh2 {[%clk
0:00:54.3]} 32. Rd1 {[%clk 0:00:54.2]} 32... Nd2+ {[%clk 0:00:52.2]} 33. Kg1
{[%clk 0:00:50.8]} 33... Nf3+ {[%clk 0:00:52.8]} 34. Kf1 {[%clk 0:00:51.3]}
34... g3 {[%clk 0:00:53.1]} 35. Bc5 {[%clk 0:00:45]} 35... bxc5 {[%clk
0:00:52.2]} 36. Rd2 {[%clk 0:00:44.8]} 36... Rxd2 {[%clk 0:00:51.5]} 37. d4
{[%clk 0:00:44.2]} 37... Rf2# {[%clk 0:00:52.4]} 0-1

[Event "*** Titled Tuesday Blitz"]
[Site "Chess.com"]
[Date "2020.04.14"]
[Round "8"]
[White "krasavetc"]
[Black "ahachess"]
[Result "1-0"]
[WhiteElo "2500"]
[BlackElo "2336"]
[TimeControl "180+1"]
[EndTime "11:28:30 PDT"]
[Termination "krasavetc won by resignation"]

1. e4 {[%clk 0:03:00.9]} 1... c5 {[%clk 0:02:58]} 2. Nf3 {[%clk 0:03:01.3]} 2...
d6 {[%clk 0:02:57.9]} 3. d4 {[%clk 0:03:01.9]} 3... cxd4 {[%clk 0:02:57.7]} 4.
Nxd4 {[%clk 0:03:02.8]} 4... Nf6 {[%clk 0:02:57.7]} 5. Nc3 {[%clk 0:03:03.2]}
5... g6 {[%clk 0:02:57.2]} 6. Bc4 {[%clk 0:03:02.3]} 6... Bg7 {[%clk 0:02:54.4]}
7. Be3 {[%clk 0:02:59.8]} 7... a6 {[%clk 0:02:53.2]} 8. Bb3 {[%clk 0:02:58.6]}
8... Nbd7 {[%clk 0:02:48.4]} 9. f3 {[%clk 0:02:56.5]} 9... h5 {[%clk 0:02:47.1]}
10. Qd2 {[%clk 0:02:56.4]} 10... Qc7 {[%clk 0:02:43.6]} 11. O-O-O {[%clk
0:02:56.7]} 11... b5 {[%clk 0:02:42.8]} 12. Kb1 {[%clk 0:02:56.7]} 12... Bb7
{[%clk 0:02:40.8]} 13. h3 {[%clk 0:02:51.7]} 13... h4 {[%clk 0:02:36.5]} 14. Bg5
{[%clk 0:02:48.3]} 14... Nb6 {[%clk 0:02:26.6]} 15. Rhe1 {[%clk 0:02:39.1]}
15... Nc4 {[%clk 0:02:19.5]} 16. Bxc4 {[%clk 0:02:38.2]} 16... bxc4 {[%clk
0:02:09.5]} 17. f4 {[%clk 0:02:26.2]} 17... Rb8 {[%clk 0:02:00]} 18. e5 {[%clk
0:02:25.8]} 18... dxe5 {[%clk 0:01:52]} 19. fxe5 {[%clk 0:02:26.7]} 19... Nd5
{[%clk 0:01:48.5]} 20. e6 {[%clk 0:02:14.5]} 20... Nxc3+ {[%clk 0:01:25.5]} 21.
Qxc3 {[%clk 0:02:13.6]} 21... f6 {[%clk 0:01:23.8]} 22. Bc1 {[%clk 0:02:06.5]}
22... Bxg2 {[%clk 0:01:21.2]} 23. Qe3 {[%clk 0:02:00.8]} 23... f5 {[%clk
0:01:12.8]} 24. Rg1 {[%clk 0:01:57.3]} 24... Be4 {[%clk 0:01:11.2]} 25. Rxg6
{[%clk 0:01:55.4]} 25... Bf6 {[%clk 0:01:04.3]} 26. Rdg1 {[%clk 0:01:53.1]}
26... Rf8 {[%clk 0:01:02.4]} 27. Rg8 {[%clk 0:01:52]} 27... Qe5 {[%clk
0:00:55.4]} 28. Qh6 {[%clk 0:01:39.4]} 28... Bxc2+ {[%clk 0:00:44.3]} 29. Kxc2
{[%clk 0:01:34.6]} 29... Qe4+ {[%clk 0:00:43.5]} 30. Kd1 {[%clk 0:01:31]} 30...
Qxd4+ {[%clk 0:00:41.9]} 31. Bd2 {[%clk 0:01:30.3]} 31... Qxg1+ {[%clk
0:00:25.7]} 32. Rxg1 {[%clk 0:01:31.2]} 32... Rxb2 {[%clk 0:00:25.3]} 33. Qxf8+
{[%clk 0:01:29.3]} 33... Kxf8 {[%clk 0:00:24.7]} 34. Bh6+ {[%clk 0:01:30.2]} 1-0

[Event "*** Titled Tuesday Blitz"]
[Site "Chess.com"]
[Date "2020.04.14"]
[Round "8"]
[White "Mbneu"]
[Black "SameerMujumdar"]
[Result "1-0"]
[WhiteElo "2215"]
[BlackElo "2375"]
[TimeControl "180+1"]
[EndTime "11:28:30 PDT"]
[Termination "Mbneu won by resignation"]

1. d4 {[%clk 0:03:00.9]} 1... Nf6 {[%clk 0:02:57.7]} 2. c4 {[%clk 0:03:00.9]}
2... e6 {[%clk 0:02:58.6]} 3. Nc3 {[%clk 0:03:00.6]} 3... Bb4 {[%clk 0:02:58.6]}
4. Bg5 {[%clk 0:03:00.5]} 4... d5 {[%clk 0:02:56.6]} 5. Nf3 {[%clk 0:02:59.6]}
5... Nbd7 {[%clk 0:02:54.5]} 6. a3 {[%clk 0:02:59.1]} 6... Be7 {[%clk
0:02:53.7]} 7. g3 {[%clk 0:02:55.9]} 7... O-O {[%clk 0:02:53.7]} 8. Bg2 {[%clk
0:02:55.6]} 8... c6 {[%clk 0:02:51.4]} 9. O-O {[%clk 0:02:55]} 9... h6 {[%clk
0:02:50.1]} 10. Bf4 {[%clk 0:02:52.9]} 10... dxc4 {[%clk 0:02:45.7]} 11. Nd2
{[%clk 0:02:51.2]} 11... Nd5 {[%clk 0:02:43.5]} 12. Nxc4 {[%clk 0:02:50.4]}
12... Nxf4 {[%clk 0:02:42]} 13. gxf4 {[%clk 0:02:51.3]} 13... Nb6 {[%clk
0:02:35.2]} 14. Ne5 {[%clk 0:02:49]} 14... Bd7 {[%clk 0:02:24.7]} 15. Kh1 {[%clk
0:02:47.3]} 15... Nd5 {[%clk 0:02:18.6]} 16. e3 {[%clk 0:02:47]} 16... Rc8
{[%clk 0:02:07]} 17. Rg1 {[%clk 0:02:41]} 17... Nxc3 {[%clk 0:01:52]} 18. bxc3
{[%clk 0:02:40.2]} 18... Be8 {[%clk 0:01:47.6]} 19. Be4 {[%clk 0:02:31.8]} 19...
b6 {[%clk 0:01:40.3]} 20. Qg4 {[%clk 0:02:24.8]} 20... Bf6 {[%clk 0:01:38.3]}
21. Qg2 {[%clk 0:02:23.9]} 21... c5 {[%clk 0:01:35.4]} 22. Ng4 {[%clk
0:02:15.5]} 22... Kh8 {[%clk 0:01:34.1]} 23. Qh3 {[%clk 0:02:05]} 23... Bh4
{[%clk 0:01:31.4]} 24. f5 {[%clk 0:01:58.5]} 24... exf5 {[%clk 0:01:28.3]} 25.
Bxf5 {[%clk 0:01:56.8]} 25... Bc6+ {[%clk 0:01:29.2]} 26. f3 {[%clk 0:01:50.3]}
26... Rc7 {[%clk 0:01:19.7]} 27. Ne5 {[%clk 0:01:44]} 27... Ba8 {[%clk
0:01:13.6]} 28. Rg4 {[%clk 0:01:28]} 28... Bf6 {[%clk 0:01:09.7]} 29. Rag1
{[%clk 0:01:18.4]} 29... cxd4 {[%clk 0:01:06.5]} 30. cxd4 {[%clk 0:01:16]} 30...
Rc3 {[%clk 0:01:01.9]} 31. Qg3 {[%clk 0:01:01.4]} 31... Bxe5 {[%clk 0:00:44]}
32. dxe5 {[%clk 0:01:00]} 32... Rxe3 {[%clk 0:00:39.9]} 33. Rxg7 {[%clk
0:00:59.5]} 1-0

[Event "*** Titled Tuesday Blitz"]
[Site "Chess.com"]
[Date "2020.04.14"]
[Round "8"]
[White "blitzking1729"]
[Black "giantslayer83"]
[Result "0-1"]
[WhiteElo "2584"]
[BlackElo "2729"]
[TimeControl "180+1"]
[EndTime "11:28:31 PDT"]
[Termination "giantslayer83 won by resignation"]

1. d4 {[%clk 0:02:59.8]} 1... Nf6 {[%clk 0:02:59.8]} 2. c4 {[%clk 0:02:59.9]}
2... e6 {[%clk 0:03:00]} 3. Nf3 {[%clk 0:02:59.4]} 3... d5 {[%clk 0:02:59.3]} 4.
Nc3 {[%clk 0:02:59]} 4... Bb4 {[%clk 0:02:58.7]} 5. Qa4+ {[%clk 0:02:58.3]} 5...
Nc6 {[%clk 0:02:58.6]} 6. e3 {[%clk 0:02:58.2]} 6... O-O {[%clk 0:02:58.1]} 7.
Bd2 {[%clk 0:02:58.2]} 7... a6 {[%clk 0:02:51.1]} 8. Bd3 {[%clk 0:02:49.6]} 8...
dxc4 {[%clk 0:02:44.5]} 9. Bxc4 {[%clk 0:02:48.9]} 9... Bd6 {[%clk 0:02:44.4]}
10. Qc2 {[%clk 0:02:40.4]} 10... e5 {[%clk 0:02:44.3]} 11. d5 {[%clk 0:02:40.1]}
11... Nb4 {[%clk 0:02:39.4]} 12. Qb1 {[%clk 0:02:33.4]} 12... b5 {[%clk
0:02:39.4]} 13. Bb3 {[%clk 0:02:31.1]} 13... e4 {[%clk 0:02:31.3]} 14. Nd4
{[%clk 0:01:35.8]} 14... Nd3+ {[%clk 0:02:30.7]} 15. Kf1 {[%clk 0:01:34]} 15...
Qe8 {[%clk 0:02:06.6]} 16. Bc2 {[%clk 0:01:22.4]} 16... Bb7 {[%clk 0:02:03.8]}
17. f3 {[%clk 0:00:57]} 17... Nb4 {[%clk 0:01:51]} 18. Bxe4 {[%clk 0:00:53.7]}
18... Nbxd5 {[%clk 0:01:23.9]} 19. Nxd5 {[%clk 0:00:52]} 19... Bxd5 {[%clk
0:01:24.8]} 20. Bxd5 {[%clk 0:00:50.9]} 20... Nxd5 {[%clk 0:01:25.7]} 21. Kf2
{[%clk 0:00:50.8]} 21... Rd8 {[%clk 0:01:20.8]} 22. Re1 {[%clk 0:00:49.4]} 22...
Bc5 {[%clk 0:01:18]} 23. Qc2 {[%clk 0:00:46.9]} 23... Bb6 {[%clk 0:01:17.9]} 24.
Nc6 {[%clk 0:00:42.2]} 24... Rd6 {[%clk 0:01:13.4]} 25. Rac1 {[%clk 0:00:41.8]}
25... Nf4 {[%clk 0:01:08.3]} 26. Bb4 {[%clk 0:00:29.9]} 26... Nd3+ {[%clk
0:01:07.7]} 27. Kg1 {[%clk 0:00:29.2]} 27... Nxe1 {[%clk 0:01:04.2]} 28. Rxe1
{[%clk 0:00:23.7]} 28... Qxc6 {[%clk 0:01:02.4]} 29. Qxc6 {[%clk 0:00:22.8]}
29... Rxc6 {[%clk 0:01:03.3]} 30. Bxf8 {[%clk 0:00:23.2]} 30... Kxf8 {[%clk
0:01:03.1]} 31. Rd1 {[%clk 0:00:23.6]} 31... Ke7 {[%clk 0:01:02.4]} 32. Rd2
{[%clk 0:00:21.6]} 0-1

[Event "*** Titled Tuesday Blitz"]
[Site "Chess.com"]
[Date "2020.04.14"]
[Round "8"]
[White "RATNAKARAN"]
[Black "abhidabhi"]
[Result "0-1"]
[WhiteElo "2577"]
[BlackElo "2752"]
[TimeControl "180+1"]
[EndTime "11:28:33 PDT"]
[Termination "abhidabhi won by checkmate"]

1. e4 {[%clk 0:03:00.9]} 1... e5 {[%clk 0:02:59.5]} 2. Nf3 {[%clk 0:03:00.5]}
2... Nc6 {[%clk 0:02:59.8]} 3. Bb5 {[%clk 0:03:00.5]} 3... a6 {[%clk 0:02:58.9]}
4. Ba4 {[%clk 0:03:00.7]} 4... Nf6 {[%clk 0:02:58.8]} 5. d3 {[%clk 0:03:00.5]}
5... Bc5 {[%clk 0:02:57.5]} 6. c3 {[%clk 0:02:59.6]} 6... b5 {[%clk 0:02:57]} 7.
Bc2 {[%clk 0:02:58.8]} 7... d6 {[%clk 0:02:57.4]} 8. Bg5 {[%clk 0:02:58]} 8...
h6 {[%clk 0:02:57.2]} 9. Bh4 {[%clk 0:02:58.2]} 9... Ba7 {[%clk 0:02:54.2]} 10.
Nbd2 {[%clk 0:02:57.7]} 10... Qe7 {[%clk 0:02:52.6]} 11. h3 {[%clk 0:02:57.4]}
11... Bd7 {[%clk 0:02:45.4]} 12. Qe2 {[%clk 0:02:56.6]} 12... g5 {[%clk
0:02:44.5]} 13. Bg3 {[%clk 0:02:55.9]} 13... O-O {[%clk 0:02:11.5]} 14. Nf1
{[%clk 0:02:48.6]} 14... Nh5 {[%clk 0:02:05.2]} 15. Nxe5 {[%clk 0:02:37]} 15...
Nxe5 {[%clk 0:02:04.6]} 16. Qxh5 {[%clk 0:02:35.8]} 16... f5 {[%clk 0:02:01.8]}
17. Bxe5 {[%clk 0:02:30.2]} 17... dxe5 {[%clk 0:01:56.5]} 18. O-O-O {[%clk
0:02:21.6]} 18... Rf6 {[%clk 0:01:46.8]} 19. Ne3 {[%clk 0:02:18.4]} 19... Bxe3+
{[%clk 0:01:37.6]} 20. fxe3 {[%clk 0:02:19.3]} 20... b4 {[%clk 0:01:37.7]} 21.
exf5 {[%clk 0:02:17]} 21... bxc3 {[%clk 0:01:35.9]} 22. bxc3 {[%clk 0:02:16.9]}
22... Rb8 {[%clk 0:01:26.6]} 23. e4 {[%clk 0:02:11.3]} 23... Qc5 {[%clk
0:01:18.7]} 24. Kd2 {[%clk 0:02:08]} 24... Rc6 {[%clk 0:01:15.8]} 25. Bb3+
{[%clk 0:02:03.8]} 25... Kg7 {[%clk 0:01:10.4]} 26. Rhf1 {[%clk 0:01:48]} 26...
Rxb3 {[%clk 0:00:48.2]} 27. axb3 {[%clk 0:01:44.2]} 27... Qxc3+ {[%clk
0:00:48.1]} 28. Ke2 {[%clk 0:01:42.7]} 28... Qxb3 {[%clk 0:00:36.1]} 29. f6+
{[%clk 0:01:42]} 29... Kh7 {[%clk 0:00:35.9]} 30. f7 {[%clk 0:01:35.4]} 30...
Rc2+ {[%clk 0:00:33.9]} 31. Kf3 {[%clk 0:01:34.8]} 31... Bf5 {[%clk 0:00:05.3]}
32. exf5 {[%clk 0:01:29]} 32... Qd5+ {[%clk 0:00:04.3]} 33. Ke3 {[%clk
0:01:24.2]} 33... Qd4+ {[%clk 0:00:04.5]} 34. Kf3 {[%clk 0:01:24.4]} 34... Qf4#
{[%clk 0:00:05.4]} 0-1

[Event "*** Titled Tuesday Blitz"]
[Site "Chess.com"]
[Date "2020.04.14"]
[Round "8"]
[White "Gandrade2"]
[Black "ferdipy"]
[Result "0-1"]
[WhiteElo "1986"]
[BlackElo "2195"]
[TimeControl "180+1"]
[EndTime "11:28:34 PDT"]
[Termination "ferdipy won on time"]

1. d4 {[%clk 0:03:00.9]} 1... e5 {[%clk 0:02:59.1]} 2. dxe5 {[%clk 0:03:00.3]}
2... d6 {[%clk 0:02:59.6]} 3. Nf3 {[%clk 0:02:55.3]} 3... Nc6 {[%clk 0:02:58.6]}
4. Nc3 {[%clk 0:02:47.1]} 4... Bg4 {[%clk 0:02:54.7]} 5. e4 {[%clk 0:02:26.3]}
5... Nxe5 {[%clk 0:02:48]} 6. Be2 {[%clk 0:02:26.8]} 6... Qe7 {[%clk 0:02:45.2]}
7. O-O {[%clk 0:02:04.9]} 7... O-O-O {[%clk 0:02:42]} 8. Be3 {[%clk 0:01:59]}
8... a6 {[%clk 0:02:38]} 9. b4 {[%clk 0:01:45.3]} 9... Nf6 {[%clk 0:02:28.4]}
10. b5 {[%clk 0:01:28.5]} 10... axb5 {[%clk 0:02:22.1]} 11. Nxb5 {[%clk
0:01:07.5]} 11... Nxe4 {[%clk 0:02:11.7]} 12. Rb1 {[%clk 0:00:25.2]} 12... Nxf3+
{[%clk 0:01:57.4]} 13. Bxf3 {[%clk 0:00:25.5]} 13... Bxf3 {[%clk 0:01:58.3]} 14.
Qxf3 {[%clk 0:00:22.2]} 14... g6 {[%clk 0:01:56.7]} 15. Na7+ {[%clk 0:00:20.3]}
15... Kd7 {[%clk 0:01:54.3]} 16. Rxb7 {[%clk 0:00:18.7]} 16... f5 {[%clk
0:01:43.4]} 17. Rd1 {[%clk 0:00:18]} 17... Bg7 {[%clk 0:01:42.7]} 18. Bb6 {[%clk
0:00:16.8]} 18... Rc8 {[%clk 0:01:33.4]} 19. Nxc8 {[%clk 0:00:16.5]} 19... Rxc8
{[%clk 0:01:34.3]} 20. Ba5 {[%clk 0:00:09.3]} 20... Qe6 {[%clk 0:01:31.5]} 21.
h3 {[%clk 0:00:07.2]} 21... Qxa2 {[%clk 0:01:29]} 22. Bb4 {[%clk 0:00:04.4]}
22... Qxc2 {[%clk 0:01:25.4]} 23. Rxd6+ {[%clk 0:00:04]} 23... Nxd6 {[%clk
0:01:25]} 24. Kh2 {[%clk 0:00:01.8]} 24... Nxb7 {[%clk 0:01:22.3]} 25. Qd5+
{[%clk 0:00:02.3]} 25... Nd6 {[%clk 0:01:20.5]} 26. Bxd6 {[%clk 0:00:01.5]}
26... cxd6 {[%clk 0:01:20.7]} 27. Qb5+ {[%clk 0:00:02]} 27... Qc6 {[%clk
0:01:19.8]} 28. Qe2 {[%clk 0:00:01.8]} 28... Be5+ {[%clk 0:01:19.8]} 29. g3
{[%clk 0:00:02.2]} 29... Qe4 {[%clk 0:01:18.5]} 30. Qa2 {[%clk 0:00:01.2]} 30...
Rc2 {[%clk 0:01:15.5]} 0-1

[Event "*** Titled Tuesday Blitz"]
[Site "Chess.com"]
[Date "2020.04.14"]
[Round "8"]
[White "avantage_ru"]
[Black "Kotofeyca"]
[Result "1-0"]
[WhiteElo "2546"]
[BlackElo "2379"]
[TimeControl "180+1"]
[EndTime "11:28:37 PDT"]
[Termination "avantage_ru won by resignation"]

1. b3 {[%clk 0:03:00.9]} 1... d5 {[%clk 0:02:59.4]} 2. Bb2 {[%clk 0:03:00.6]}
2... Bg4 {[%clk 0:02:59.4]} 3. h3 {[%clk 0:02:59.2]} 3... Bh5 {[%clk 0:02:59]}
4. g3 {[%clk 0:02:59]} 4... c6 {[%clk 0:02:58.2]} 5. Bg2 {[%clk 0:02:58.8]} 5...
Nd7 {[%clk 0:02:58.1]} 6. Nf3 {[%clk 0:02:59]} 6... f6 {[%clk 0:02:55.5]} 7. d4
{[%clk 0:02:56.8]} 7... e6 {[%clk 0:02:55.4]} 8. O-O {[%clk 0:02:56]} 8... Bd6
{[%clk 0:02:55.5]} 9. Nbd2 {[%clk 0:02:55.6]} 9... f5 {[%clk 0:02:55.6]} 10. c4
{[%clk 0:02:52.4]} 10... Ngf6 {[%clk 0:02:55.3]} 11. a4 {[%clk 0:02:51.6]} 11...
Qe7 {[%clk 0:02:55]} 12. Qc1 {[%clk 0:02:50.4]} 12... Ne4 {[%clk 0:02:53.5]} 13.
e3 {[%clk 0:02:46.6]} 13... O-O {[%clk 0:02:50.2]} 14. Ba3 {[%clk 0:02:46.2]}
14... Bxa3 {[%clk 0:02:43.5]} 15. Qxa3 {[%clk 0:02:45.8]} 15... Qxa3 {[%clk
0:02:42.7]} 16. Rxa3 {[%clk 0:02:45.7]} 16... Bxf3 {[%clk 0:02:37.3]} 17. Nxf3
{[%clk 0:02:45.1]} 17... a5 {[%clk 0:02:30.8]} 18. Rc1 {[%clk 0:02:43.2]} 18...
Kf7 {[%clk 0:02:25.8]} 19. Ne1 {[%clk 0:02:42.8]} 19... Ke7 {[%clk 0:02:20.5]}
20. Nd3 {[%clk 0:02:42.5]} 20... g5 {[%clk 0:02:14.8]} 21. g4 {[%clk 0:02:36.4]}
21... fxg4 {[%clk 0:02:00.6]} 22. hxg4 {[%clk 0:02:35.5]} 22... Nd2 {[%clk
0:01:46.2]} 23. Rc2 {[%clk 0:02:22.1]} 23... Nf3+ {[%clk 0:01:45]} 24. Bxf3
{[%clk 0:02:22.2]} 24... Rxf3 {[%clk 0:01:45.5]} 25. Kg2 {[%clk 0:02:22.5]}
25... Rf6 {[%clk 0:01:38.6]} 26. Ra1 {[%clk 0:02:21.8]} 26... Rh6 {[%clk
0:01:37.7]} 27. Rb1 {[%clk 0:02:15]} 27... Rh4 {[%clk 0:01:22.9]} 28. f3 {[%clk
0:02:11.3]} 28... Kd6 {[%clk 0:01:13.4]} 29. Rh1 {[%clk 0:02:09.2]} 29... Rxh1
{[%clk 0:01:12.1]} 30. Kxh1 {[%clk 0:02:10.1]} 30... h5 {[%clk 0:01:10.1]} 31.
gxh5 {[%clk 0:02:09.2]} 31... Rh8 {[%clk 0:01:09.8]} 32. Rh2 {[%clk 0:02:09.1]}
32... Rh6 {[%clk 0:01:07.3]} 33. Nf2 {[%clk 0:02:00.1]} 33... Nf6 {[%clk
0:00:50.4]} 34. Ng4 {[%clk 0:01:59.1]} 34... Nxg4 {[%clk 0:00:34.4]} 35. fxg4
{[%clk 0:01:59]} 35... e5 {[%clk 0:00:34.9]} 36. Rf2 {[%clk 0:01:57.8]} 36...
Ke6 {[%clk 0:00:34.2]} 37. Kg2 {[%clk 0:01:55.6]} 37... e4 {[%clk 0:00:21.9]}
38. Rf5 {[%clk 0:01:53.4]} 38... Rf6 {[%clk 0:00:20.1]} 39. Rxf6+ {[%clk
0:01:40.8]} 39... Kxf6 {[%clk 0:00:21]} 40. c5 {[%clk 0:01:40.8]} 40... Ke6
{[%clk 0:00:19.7]} 41. Kf2 {[%clk 0:01:40.9]} 41... Kf6 {[%clk 0:00:19.7]} 42.
Ke2 {[%clk 0:01:41]} 42... Ke6 {[%clk 0:00:20.6]} 43. Kd2 {[%clk 0:01:41.3]}
43... Kf6 {[%clk 0:00:21.5]} 44. Kc3 {[%clk 0:01:41.6]} 44... Kg7 {[%clk
0:00:22.2]} 45. b4 {[%clk 0:01:41.9]} 45... Kh6 {[%clk 0:00:20.4]} 46. bxa5
{[%clk 0:01:41.8]} 46... Kg7 {[%clk 0:00:19.6]} 47. Kb4 {[%clk 0:01:41.9]} 47...
Kf6 {[%clk 0:00:19.4]} 48. a6 {[%clk 0:01:41.9]} 48... b6 {[%clk 0:00:19.8]} 49.
cxb6 {[%clk 0:01:41.2]} 1-0

[Event "*** Titled Tuesday Blitz"]
[Site "Chess.com"]
[Date "2020.04.14"]
[Round "8"]
[White "erlesfar"]
[Black "asimali1977"]
[Result "1-0"]
[WhiteElo "2258"]
[BlackElo "1987"]
[TimeControl "180+1"]
[EndTime "11:28:38 PDT"]
[Termination "erlesfar won by checkmate"]

1. e4 {[%clk 0:02:55]} 1... g6 {[%clk 0:02:59.6]} 2. d4 {[%clk 0:02:54.3]} 2...
Bg7 {[%clk 0:02:59.3]} 3. Nc3 {[%clk 0:02:54.6]} 3... c5 {[%clk 0:02:59.2]} 4.
dxc5 {[%clk 0:02:52.7]} 4... Nc6 {[%clk 0:02:53.1]} 5. Nf3 {[%clk 0:02:50.6]}
5... Nf6 {[%clk 0:02:51.9]} 6. Bc4 {[%clk 0:02:40]} 6... O-O {[%clk 0:02:51.4]}
7. O-O {[%clk 0:02:38.6]} 7... b6 {[%clk 0:02:50]} 8. cxb6 {[%clk 0:02:36.6]}
8... axb6 {[%clk 0:02:49.8]} 9. h3 {[%clk 0:02:32.7]} 9... d6 {[%clk 0:02:36.8]}
10. Bg5 {[%clk 0:02:15]} 10... Bb7 {[%clk 0:02:35.6]} 11. Re1 {[%clk 0:02:12.8]}
11... h6 {[%clk 0:02:28.6]} 12. Bh4 {[%clk 0:02:10.5]} 12... Nd7 {[%clk
0:02:21.6]} 13. Bb3 {[%clk 0:02:03.2]} 13... Nc5 {[%clk 0:02:17.4]} 14. Bd5
{[%clk 0:01:57.5]} 14... Qd7 {[%clk 0:02:06.5]} 15. a3 {[%clk 0:01:10.6]} 15...
Rfc8 {[%clk 0:01:58.1]} 16. Qd2 {[%clk 0:01:07.6]} 16... e6 {[%clk 0:01:52.1]}
17. Ba2 {[%clk 0:01:06.2]} 17... Ne5 {[%clk 0:01:45.8]} 18. Nxe5 {[%clk
0:01:03.7]} 18... Bxe5 {[%clk 0:01:43.7]} 19. Qxh6 {[%clk 0:01:02.6]} 19... Qc6
{[%clk 0:01:27.2]} 20. Nd5 {[%clk 0:00:51.9]} 20... exd5 {[%clk 0:01:16.2]} 21.
Bxd5 {[%clk 0:00:48.8]} 21... Qc7 {[%clk 0:01:12.6]} 22. Qxg6+ {[%clk
0:00:36.9]} 22... Kf8 {[%clk 0:01:06]} 23. Qh6+ {[%clk 0:00:36.2]} 23... Bg7
{[%clk 0:01:04.3]} 24. Qf4 {[%clk 0:00:32.8]} 24... Bxd5 {[%clk 0:00:54.3]} 25.
exd5 {[%clk 0:00:31.6]} 25... Nd7 {[%clk 0:00:50]} 26. Re7 {[%clk 0:00:29.1]}
26... Qxc2 {[%clk 0:00:40.2]} 27. Qxf7# {[%clk 0:00:27.6]} 1-0

[Event "*** Titled Tuesday Blitz"]
[Site "Chess.com"]
[Date "2020.04.14"]
[Round "8"]
[White "DinaBelenkaya"]
[Black "davigator"]
[Result "1-0"]
[WhiteElo "2196"]
[BlackElo "2345"]
[TimeControl "180+1"]
[EndTime "11:28:44 PDT"]
[Termination "DinaBelenkaya won by checkmate"]

1. e4 {[%clk 0:03:00.9]} 1... c5 {[%clk 0:02:56.9]} 2. Nc3 {[%clk 0:02:59.8]}
2... Nc6 {[%clk 0:02:56]} 3. d3 {[%clk 0:02:53.7]} 3... g6 {[%clk 0:02:55.1]} 4.
g3 {[%clk 0:02:49.9]} 4... d6 {[%clk 0:02:55.1]} 5. Nge2 {[%clk 0:02:50.2]} 5...
Bg7 {[%clk 0:02:54.7]} 6. Bg2 {[%clk 0:02:51.1]} 6... e6 {[%clk 0:02:51.7]} 7.
Be3 {[%clk 0:02:51.4]} 7... Nf6 {[%clk 0:02:51.1]} 8. h3 {[%clk 0:02:48.7]} 8...
O-O {[%clk 0:02:51.3]} 9. O-O {[%clk 0:02:48.6]} 9... Rb8 {[%clk 0:02:49.3]} 10.
Qc1 {[%clk 0:02:45.5]} 10... Re8 {[%clk 0:02:49.3]} 11. Bh6 {[%clk 0:02:45.4]}
11... Bh8 {[%clk 0:02:48.2]} 12. f4 {[%clk 0:02:45.8]} 12... Nd7 {[%clk
0:02:43.6]} 13. f5 {[%clk 0:02:41.4]} 13... Nce5 {[%clk 0:02:41.3]} 14. Qf4
{[%clk 0:02:29.6]} 14... Bf6 {[%clk 0:02:34.1]} 15. h4 {[%clk 0:02:28.4]} 15...
b5 {[%clk 0:02:30.8]} 16. Bh3 {[%clk 0:01:57.4]} 16... b4 {[%clk 0:02:21.5]} 17.
Nd1 {[%clk 0:01:57.2]} 17... Rb7 {[%clk 0:02:16.6]} 18. Ne3 {[%clk 0:01:52.9]}
18... Bg7 {[%clk 0:02:07.7]} 19. Rf2 {[%clk 0:01:31.7]} 19... Nf6 {[%clk
0:01:57.1]} 20. Bxg7 {[%clk 0:00:58.6]} 20... Kxg7 {[%clk 0:01:56.3]} 21. g4
{[%clk 0:00:54.8]} 21... Ng8 {[%clk 0:01:48.9]} 22. g5 {[%clk 0:00:48.7]} 22...
f6 {[%clk 0:01:45.6]} 23. Raf1 {[%clk 0:00:46]} 23... Rf7 {[%clk 0:01:34.1]} 24.
fxe6 {[%clk 0:00:42.6]} 24... Bxe6 {[%clk 0:01:33]} 25. Bxe6 {[%clk 0:00:41.7]}
25... Rxe6 {[%clk 0:01:33.1]} 26. Nd5 {[%clk 0:00:26]} 26... fxg5 {[%clk
0:01:32.2]} 27. Qxg5 {[%clk 0:00:25.4]} 27... Qxg5+ {[%clk 0:01:27.1]} 28. hxg5
{[%clk 0:00:26.3]} 28... Rxf2 {[%clk 0:01:25.9]} 29. Rxf2 {[%clk 0:00:25]} 29...
Re8 {[%clk 0:01:17.6]} 30. Nef4 {[%clk 0:00:18.6]} 30... Nf7 {[%clk 0:01:11.1]}
31. Nc7 {[%clk 0:00:09.8]} 31... Re5 {[%clk 0:01:10.6]} 32. Nfe6+ {[%clk
0:00:09.9]} 32... Kh8 {[%clk 0:01:09.1]} 33. Rxf7 {[%clk 0:00:10]} 33... h6
{[%clk 0:01:09.2]} 34. Nf8 {[%clk 0:00:09.6]} 34... Re7 {[%clk 0:01:05.2]} 35.
Nxg6# {[%clk 0:00:09.2]} 1-0